[Event "*** Titled Tuesday Blitz"]
[Site "Chess.com"]
[Date "2019.06.04"]
[Round "3"]
[White "LonesomeGeorge1"]
[Black "GameOverBro"]
[Result "1-0"]
[WhiteElo "2366"]
[BlackElo "2460"]
[TimeControl "180+2"]
[EndTime "13:36:31 PDT"]
[Termination "LonesomeGeorge1 won by checkmate"]

1. e4 {[%clk 0:03:01.9]} 1... c5 {[%clk 0:02:48.3]} 2. Nf3 {[%clk 0:03:02.2]}
2... e6 {[%clk 0:02:46.5]} 3. b3 {[%clk 0:03:02.7]} 3... Nc6 {[%clk 0:02:43]} 4.
Bb2 {[%clk 0:03:02.5]} 4... Nf6 {[%clk 0:02:42.6]} 5. e5 {[%clk 0:03:03]} 5...
Nd5 {[%clk 0:02:40.7]} 6. c4 {[%clk 0:03:03.6]} 6... Nc7 {[%clk 0:02:37.2]} 7.
Bd3 {[%clk 0:03:04.7]} 7... d5 {[%clk 0:02:32.1]} 8. exd6 {[%clk 0:03:02.6]}
8... Qxd6 {[%clk 0:02:27.4]} 9. Be4 {[%clk 0:03:03.2]} 9... f5 {[%clk
0:02:16.6]} 10. Bxc6+ {[%clk 0:02:57.9]} 10... Qxc6 {[%clk 0:02:16.9]} 11. d4
{[%clk 0:02:56]} 11... cxd4 {[%clk 0:02:11.2]} 12. Qxd4 {[%clk 0:02:54.1]} 12...
Qd6 {[%clk 0:01:38.8]} 13. Qe3 {[%clk 0:02:45.2]} 13... Qb6 {[%clk 0:01:29.5]}
14. Bd4 {[%clk 0:02:42.6]} 14... Qa5+ {[%clk 0:01:29.6]} 15. Nc3 {[%clk
0:02:38.5]} 15... Bb4 {[%clk 0:01:17]} 16. O-O {[%clk 0:02:12.7]} 16... O-O
{[%clk 0:01:09.4]} 17. a3 {[%clk 0:02:10.4]} 17... Be7 {[%clk 0:00:50.7]} 18.
Be5 {[%clk 0:02:03.7]} 18... Na6 {[%clk 0:00:32.5]} 19. b4 {[%clk 0:02:01.8]}
19... Qd8 {[%clk 0:00:33.4]} 20. Rad1 {[%clk 0:02:01.3]} 20... Qe8 {[%clk
0:00:34.1]} 21. Rfe1 {[%clk 0:01:58.5]} 21... Nb8 {[%clk 0:00:29]} 22. b5 {[%clk
0:01:48.7]} 22... Nd7 {[%clk 0:00:27.7]} 23. Bd4 {[%clk 0:01:47.2]} 23... Nb6
{[%clk 0:00:20.8]} 24. c5 {[%clk 0:01:41.2]} 24... Nc4 {[%clk 0:00:20.9]} 25.
Qd3 {[%clk 0:01:33.4]} 25... Na5 {[%clk 0:00:13.2]} 26. a4 {[%clk 0:01:24.5]}
26... Qh5 {[%clk 0:00:12.9]} 27. Ne2 {[%clk 0:01:12.3]} 27... h6 {[%clk
0:00:11.7]} 28. Nf4 {[%clk 0:01:11.7]} 28... Qf7 {[%clk 0:00:12.8]} 29. Ne5
{[%clk 0:01:11]} 29... Qe8 {[%clk 0:00:14]} 30. Qc3 {[%clk 0:01:11.3]} 30... b6
{[%clk 0:00:13.8]} 31. c6 {[%clk 0:01:11.4]} 31... Bf6 {[%clk 0:00:12.6]} 32.
Ned3 {[%clk 0:01:07.3]} 32... a6 {[%clk 0:00:12.3]} 33. Bxf6 {[%clk 0:00:56.1]}
33... gxf6 {[%clk 0:00:13.5]} 34. Re3 {[%clk 0:00:55.6]} 34... e5 {[%clk
0:00:14]} 35. Ng6 {[%clk 0:00:35.1]} 35... Rf7 {[%clk 0:00:09.5]} 36. Ndxe5
{[%clk 0:00:34.6]} 36... fxe5 {[%clk 0:00:07.6]} 37. Rxe5 {[%clk 0:00:36.5]}
37... Be6 {[%clk 0:00:07.1]} 38. Rxe6 {[%clk 0:00:33.9]} 38... Qxe6 {[%clk
0:00:07.7]} 39. Qh8# {[%clk 0:00:34.7]} 1-0

[Event "*** Titled Tuesday Blitz"]
[Site "Chess.com"]
[Date "2019.06.04"]
[Round "3"]
[White "x-5963514717"]
[Black "FrenchandSlav"]
[Result "1-0"]
[WhiteElo "2481"]
[BlackElo "2325"]
[TimeControl "180+2"]
[EndTime "13:36:33 PDT"]
[Termination "x-5963514717 won by resignation"]

1. Nf3 {[%clk 0:03:01.9]} 1... d5 {[%clk 0:03:00.4]} 2. g3 {[%clk 0:03:03.2]}
2... Nf6 {[%clk 0:03:00.9]} 3. Bg2 {[%clk 0:03:04.6]} 3... c5 {[%clk 0:03:01.8]}
4. O-O {[%clk 0:03:05.7]} 4... e6 {[%clk 0:03:02.8]} 5. d4 {[%clk 0:03:06.6]}
5... cxd4 {[%clk 0:03:00.5]} 6. Nxd4 {[%clk 0:03:08.5]} 6... e5 {[%clk
0:02:58.2]} 7. Nb3 {[%clk 0:03:09.2]} 7... Be7 {[%clk 0:02:55.4]} 8. Bg5 {[%clk
0:03:08.9]} 8... Be6 {[%clk 0:02:56.4]} 9. Nc3 {[%clk 0:03:07.8]} 9... Nbd7
{[%clk 0:02:49.2]} 10. f4 {[%clk 0:02:57.9]} 10... h6 {[%clk 0:02:19.3]} 11.
Bxf6 {[%clk 0:02:47.1]} 11... Nxf6 {[%clk 0:02:19.5]} 12. fxe5 {[%clk
0:02:46.7]} 12... Ng4 {[%clk 0:02:20.2]} 13. Nxd5 {[%clk 0:02:40]} 13... O-O
{[%clk 0:01:49.9]} 14. Qd4 {[%clk 0:02:40.4]} 14... Bxd5 {[%clk 0:01:32.8]} 15.
Qxd5 {[%clk 0:02:40.5]} 15... Qxd5 {[%clk 0:01:21.7]} 16. Bxd5 {[%clk
0:02:42.4]} 16... Ne3 {[%clk 0:01:22.9]} 17. Bxb7 {[%clk 0:02:38.9]} 17... Rab8
{[%clk 0:01:23.8]} 18. Rf3 {[%clk 0:02:35.8]} 18... Nxc2 {[%clk 0:01:22]} 19.
Rc1 {[%clk 0:02:33.4]} 19... Nb4 {[%clk 0:01:18.3]} 20. Rc7 {[%clk 0:02:28.2]}
20... Bd8 {[%clk 0:01:11.3]} 21. Rd7 {[%clk 0:02:29.6]} 21... Bb6+ {[%clk
0:01:11.7]} 22. Kg2 {[%clk 0:02:27.4]} 22... Rbd8 {[%clk 0:00:57.2]} 23. Rxd8
{[%clk 0:02:20.4]} 23... Rxd8 {[%clk 0:00:59.1]} 24. a4 {[%clk 0:02:21.8]} 24...
a5 {[%clk 0:00:49.8]} 25. Rc3 {[%clk 0:02:19.3]} 25... g6 {[%clk 0:00:44.2]} 26.
Rc4 {[%clk 0:02:12.9]} 26... Kg7 {[%clk 0:00:39.1]} 27. Be4 {[%clk 0:02:09.1]}
27... Re8 {[%clk 0:00:35.1]} 28. Nc5 {[%clk 0:01:50.5]} 28... Rxe5 {[%clk
0:00:21.5]} 29. Nd7 {[%clk 0:01:51.7]} 29... Re6 {[%clk 0:00:22.9]} 30. Nxb6
{[%clk 0:01:51.1]} 30... Rxb6 {[%clk 0:00:24.8]} 31. Rc5 {[%clk 0:01:51.5]}
31... Na2 {[%clk 0:00:23.1]} 32. Rb5 {[%clk 0:01:44.6]} 32... Re6 {[%clk
0:00:22.6]} 33. Bd3 {[%clk 0:01:44.4]} 33... Nb4 {[%clk 0:00:22.6]} 34. Kf3
{[%clk 0:01:36.2]} 34... Nc6 {[%clk 0:00:21.5]} 35. Kf2 {[%clk 0:01:32.8]} 35...
Nd4 {[%clk 0:00:20.3]} 36. Rxa5 {[%clk 0:01:32.1]} 36... Rf6+ {[%clk 0:00:21.9]}
37. Ke3 {[%clk 0:01:31.4]} 37... Nc6 {[%clk 0:00:20.7]} 38. Rc5 {[%clk
0:01:32.5]} 38... Re6+ {[%clk 0:00:21.6]} 39. Kd2 {[%clk 0:01:32.6]} 39... Nb4
{[%clk 0:00:22.8]} 40. Kc3 {[%clk 0:01:28.5]} 40... Nc6 {[%clk 0:00:23.3]} 41.
b4 {[%clk 0:01:28.1]} 41... Ne5 {[%clk 0:00:23.9]} 42. a5 {[%clk 0:01:26]} 42...
Nd7 {[%clk 0:00:24.8]} 43. Rc7 {[%clk 0:01:26.6]} 43... Nf6 {[%clk 0:00:24.3]}
44. Bc4 {[%clk 0:01:24.9]} 44... Re3+ {[%clk 0:00:23.7]} 45. Kd4 {[%clk
0:01:25.8]} 45... Re4+ {[%clk 0:00:24.6]} 46. Kc5 {[%clk 0:01:22.1]} 46... Re5+
{[%clk 0:00:25]} 47. Kd6 {[%clk 0:01:20.5]} 1-0

[Event "*** Titled Tuesday Blitz"]
[Site "Chess.com"]
[Date "2019.06.04"]
[Round "3"]
[White "nrvisakh"]
[Black "Lagmantr"]
[Result "1-0"]
[WhiteElo "2746"]
[BlackElo "2562"]
[TimeControl "180+2"]
[EndTime "13:36:36 PDT"]
[Termination "nrvisakh won by resignation"]

1. e4 {[%clk 0:03:01.9]} 1... c5 {[%clk 0:03:00.6]} 2. Nf3 {[%clk 0:03:01.9]}
2... Nc6 {[%clk 0:03:02]} 3. Bb5 {[%clk 0:03:00.3]} 3... g5 {[%clk 0:03:02.9]}
4. Bxc6 {[%clk 0:02:46.2]} 4... dxc6 {[%clk 0:03:03.7]} 5. Nxg5 {[%clk
0:02:47.2]} 5... Nf6 {[%clk 0:03:04.6]} 6. e5 {[%clk 0:02:46.1]} 6... Rg8 {[%clk
0:03:05.5]} 7. d3 {[%clk 0:02:42.7]} 7... Ng4 {[%clk 0:03:06.1]} 8. e6 {[%clk
0:02:42.4]} 8... Bxe6 {[%clk 0:03:05.6]} 9. Nxe6 {[%clk 0:02:40.9]} 9... fxe6
{[%clk 0:03:07.5]} 10. Qe2 {[%clk 0:02:37.8]} 10... Qd5 {[%clk 0:02:56.1]} 11.
f3 {[%clk 0:02:36.4]} 11... Nf6 {[%clk 0:02:49.6]} 12. Nc3 {[%clk 0:02:35.5]}
12... Qd7 {[%clk 0:02:39.8]} 13. O-O {[%clk 0:02:12.7]} 13... O-O-O {[%clk
0:02:25.7]} 14. Re1 {[%clk 0:02:11.5]} 14... Qd4+ {[%clk 0:01:38.7]} 15. Be3
{[%clk 0:02:01.1]} 15... Qe5 {[%clk 0:01:38.5]} 16. Bf2 {[%clk 0:01:56.7]} 16...
Qxe2 {[%clk 0:01:31.8]} 17. Rxe2 {[%clk 0:01:57]} 17... Nd5 {[%clk 0:01:25.9]}
18. Nxd5 {[%clk 0:01:50.1]} 18... Rxd5 {[%clk 0:01:03.1]} 19. Rxe6 {[%clk
0:01:35.7]} 19... c4 {[%clk 0:01:03]} 20. d4 {[%clk 0:01:13]} 20... Kd7 {[%clk
0:00:51.6]} 21. Re4 {[%clk 0:01:11.9]} 21... e6 {[%clk 0:00:43.4]} 22. Rae1
{[%clk 0:01:02.8]} 22... Rg6 {[%clk 0:00:43.5]} 23. Rf4 {[%clk 0:01:01.1]} 23...
Ke8 {[%clk 0:00:35.8]} 24. Rfe4 {[%clk 0:00:48.2]} 24... Kd7 {[%clk 0:00:30]}
25. b3 {[%clk 0:00:47.6]} 25... Ra5 {[%clk 0:00:29.5]} 26. a4 {[%clk 0:00:45.9]}
26... cxb3 {[%clk 0:00:30.6]} 27. cxb3 {[%clk 0:00:47.8]} 27... b5 {[%clk
0:00:31.9]} 28. Re5 {[%clk 0:00:43.7]} 28... Bb4 {[%clk 0:00:32.6]} 29. Rb1
{[%clk 0:00:40.2]} 29... bxa4 {[%clk 0:00:32.9]} 30. Rxa5 {[%clk 0:00:42]} 30...
Bxa5 {[%clk 0:00:34.2]} 31. bxa4 {[%clk 0:00:43.9]} 31... Kc7 {[%clk 0:00:32.2]}
32. Bg3+ {[%clk 0:00:40]} 32... Rxg3 {[%clk 0:00:32.3]} 33. hxg3 {[%clk
0:00:40.6]} 33... Bb6 {[%clk 0:00:33.9]} 34. Kf2 {[%clk 0:00:40.2]} 34... Bxd4+
{[%clk 0:00:34.7]} 35. Ke2 {[%clk 0:00:42.1]} 35... Kd6 {[%clk 0:00:34.3]} 36.
Rh1 {[%clk 0:00:42.5]} 36... Kd5 {[%clk 0:00:33.8]} 37. Rxh7 {[%clk 0:00:42.3]}
37... Kc4 {[%clk 0:00:35.1]} 38. g4 {[%clk 0:00:43.8]} 38... c5 {[%clk
0:00:36.2]} 39. g5 {[%clk 0:00:45.3]} 39... Kb3 {[%clk 0:00:37.1]} 40. g6 {[%clk
0:00:46.8]} 40... c4 {[%clk 0:00:38.4]} 41. g7 {[%clk 0:00:48.4]} 41... Bxg7
{[%clk 0:00:39.7]} 42. Rxg7 {[%clk 0:00:50.3]} 42... c3 {[%clk 0:00:41.6]} 43.
Rc7 {[%clk 0:00:51.8]} 43... c2 {[%clk 0:00:41.9]} 44. Kd2 {[%clk 0:00:53.2]}
44... c1=Q+ {[%clk 0:00:43.2]} 45. Kxc1 {[%clk 0:00:53.3]} 1-0

[Event "*** Titled Tuesday Blitz"]
[Site "Chess.com"]
[Date "2019.06.04"]
[Round "3"]
[White "Raja3401"]
[Black "chessking2151"]
[Result "1-0"]
[WhiteElo "2734"]
[BlackElo "2568"]
[TimeControl "180+2"]
[EndTime "13:36:39 PDT"]
[Termination "Raja3401 won by resignation"]

1. e4 {[%clk 0:03:01.9]} 1... e5 {[%clk 0:02:59.6]} 2. Nf3 {[%clk 0:03:01.3]}
2... Nc6 {[%clk 0:03:00.6]} 3. Bb5 {[%clk 0:03:00.3]} 3... a6 {[%clk 0:02:58.3]}
4. Ba4 {[%clk 0:03:00.7]} 4... Nf6 {[%clk 0:02:59.1]} 5. O-O {[%clk 0:02:59.2]}
5... Be7 {[%clk 0:03:00.3]} 6. d3 {[%clk 0:02:53.3]} 6... b5 {[%clk 0:03:01.3]}
7. Bb3 {[%clk 0:02:53.3]} 7... Bb7 {[%clk 0:03:02.9]} 8. Nc3 {[%clk 0:02:50.6]}
8... O-O {[%clk 0:03:01.1]} 9. a4 {[%clk 0:02:47.7]} 9... Na5 {[%clk 0:02:57.1]}
10. Nxe5 {[%clk 0:02:39.8]} 10... Nxb3 {[%clk 0:02:25.3]} 11. cxb3 {[%clk
0:02:41.7]} 11... b4 {[%clk 0:02:26.9]} 12. Ne2 {[%clk 0:02:35.5]} 12... d5
{[%clk 0:02:19.6]} 13. exd5 {[%clk 0:02:32.6]} 13... Qxd5 {[%clk 0:02:06.6]} 14.
Nf3 {[%clk 0:02:33.7]} 14... Qd7 {[%clk 0:01:18.4]} 15. Ne5 {[%clk 0:02:29.1]}
15... Qf5 {[%clk 0:01:00.2]} 16. d4 {[%clk 0:02:26.3]} 16... Rad8 {[%clk
0:01:00.2]} 17. Ng3 {[%clk 0:02:26.8]} 17... Qc8 {[%clk 0:00:56.4]} 18. Be3
{[%clk 0:02:26.9]} 18... Rfe8 {[%clk 0:00:54.7]} 19. Qc2 {[%clk 0:02:26]} 19...
Bd6 {[%clk 0:00:43.9]} 20. Rac1 {[%clk 0:02:24.5]} 20... Nd5 {[%clk 0:00:42.3]}
21. Nc4 {[%clk 0:02:04.8]} 21... Qg4 {[%clk 0:00:30.2]} 22. Qf5 {[%clk
0:01:57.1]} 22... Qh4 {[%clk 0:00:27.7]} 23. Bg5 {[%clk 0:01:52.9]} 23... g6
{[%clk 0:00:19.4]} 24. Bxh4 {[%clk 0:01:51.2]} 24... gxf5 {[%clk 0:00:19.7]} 25.
Bxd8 {[%clk 0:01:52.8]} 25... Rxd8 {[%clk 0:00:21.2]} 26. Nxf5 {[%clk
0:01:52.9]} 26... Bf8 {[%clk 0:00:22.6]} 27. Nce3 {[%clk 0:01:40.7]} 27... Nf4
{[%clk 0:00:21.4]} 28. Rxc7 {[%clk 0:01:40.6]} 28... Be4 {[%clk 0:00:22.8]} 29.
f3 {[%clk 0:01:33.2]} 29... Bd3 {[%clk 0:00:22.8]} 30. Rd1 {[%clk 0:01:33.1]}
30... Re8 {[%clk 0:00:18.6]} 31. Kf2 {[%clk 0:01:32.6]} 31... Bxf5 {[%clk
0:00:18.9]} 32. Nxf5 {[%clk 0:01:33.7]} 32... Re2+ {[%clk 0:00:20.2]} 33. Kg3
{[%clk 0:01:33.5]} 33... Nh5+ {[%clk 0:00:21.1]} 34. Kh4 {[%clk 0:01:29.3]}
34... Nf6 {[%clk 0:00:21.5]} 35. g4 {[%clk 0:01:26.5]} 35... Rxb2 {[%clk
0:00:17.9]} 36. Rc8 {[%clk 0:01:21.8]} 36... h5 {[%clk 0:00:15.2]} 37. g5 {[%clk
0:01:19.3]} 37... Nd5 {[%clk 0:00:15]} 38. Re1 {[%clk 0:01:13.8]} 38... Nf4
{[%clk 0:00:06.2]} 39. Ree8 {[%clk 0:01:14.2]} 39... Ng6+ {[%clk 0:00:07.1]} 40.
Kg3 {[%clk 0:01:10.7]} 40... Rxb3 {[%clk 0:00:08]} 41. Rc7 {[%clk 0:01:00.6]}
41... Kh7 {[%clk 0:00:03.6]} 42. Rxf7+ {[%clk 0:00:59.6]} 42... Kg8 {[%clk
0:00:05.1]} 43. Nh6+ {[%clk 0:00:59.6]} 43... Kh8 {[%clk 0:00:06.5]} 44. Rexf8+
{[%clk 0:00:59.7]} 44... Nxf8 {[%clk 0:00:07.9]} 45. Rxf8+ {[%clk 0:01:01.6]}
45... Kg7 {[%clk 0:00:09.3]} 46. Rf7+ {[%clk 0:01:01.6]} 46... Kh8 {[%clk
0:00:10]} 47. g6 {[%clk 0:01:01.9]} 1-0

[Event "*** Titled Tuesday Blitz"]
[Site "Chess.com"]
[Date "2019.06.04"]
[Round "3"]
[White "TBergh98"]
[Black "MarcoRiehle"]
[Result "0-1"]
[WhiteElo "2418"]
[BlackElo "2537"]
[TimeControl "180+2"]
[EndTime "13:36:42 PDT"]
[Termination "MarcoRiehle won by resignation"]

1. d4 {[%clk 0:03:01.9]} 1... d5 {[%clk 0:03:00.3]} 2. Nf3 {[%clk 0:03:02.4]}
2... e6 {[%clk 0:02:58.7]} 3. Bf4 {[%clk 0:03:03.4]} 3... Bd6 {[%clk 0:02:58.8]}
4. Bg3 {[%clk 0:03:04.1]} 4... c5 {[%clk 0:02:53.1]} 5. c3 {[%clk 0:03:04.7]}
5... Nc6 {[%clk 0:02:39.2]} 6. e3 {[%clk 0:03:05.2]} 6... Nf6 {[%clk 0:02:26.1]}
7. Nbd2 {[%clk 0:03:06.2]} 7... O-O {[%clk 0:02:25.4]} 8. Bd3 {[%clk 0:03:06.2]}
8... Re8 {[%clk 0:02:23.8]} 9. Ne5 {[%clk 0:03:05]} 9... Bxe5 {[%clk 0:02:24.8]}
10. Bxe5 {[%clk 0:02:58.8]} 10... Nxe5 {[%clk 0:02:24.2]} 11. dxe5 {[%clk
0:03:00.7]} 11... Nd7 {[%clk 0:02:24.9]} 12. f4 {[%clk 0:03:00.6]} 12... c4
{[%clk 0:02:24.2]} 13. Bc2 {[%clk 0:03:00.2]} 13... Qb6 {[%clk 0:02:24.9]} 14.
Kf2 {[%clk 0:02:18.7]} 14... Qxb2 {[%clk 0:02:16.6]} 15. Nf3 {[%clk 0:02:19.7]}
15... Nf8 {[%clk 0:02:09.2]} 16. Qd2 {[%clk 0:02:10.9]} 16... Qb6 {[%clk
0:02:05.4]} 17. Nd4 {[%clk 0:02:10.7]} 17... Bd7 {[%clk 0:01:55.5]} 18. a4
{[%clk 0:02:00.2]} 18... Qc7 {[%clk 0:01:44.4]} 19. h4 {[%clk 0:01:53.1]} 19...
f6 {[%clk 0:01:32.2]} 20. exf6 {[%clk 0:01:42.1]} 20... gxf6 {[%clk 0:01:34.1]}
21. Rh3 {[%clk 0:01:42.3]} 21... e5 {[%clk 0:01:31]} 22. Rg3+ {[%clk 0:01:43.3]}
22... Kh8 {[%clk 0:01:26]} 23. Nf3 {[%clk 0:01:44.2]} 23... Bc6 {[%clk
0:01:20.4]} 24. fxe5 {[%clk 0:01:13]} 24... fxe5 {[%clk 0:01:18.8]} 25. e4
{[%clk 0:01:04.8]} 25... dxe4 {[%clk 0:01:10.9]} 26. Qg5 {[%clk 0:01:05.1]}
26... Ng6 {[%clk 0:01:09.9]} 27. Nh2 {[%clk 0:00:38.3]} 27... Qb6+ {[%clk
0:01:06.1]} 28. Ke1 {[%clk 0:00:30]} 28... Rf8 {[%clk 0:01:01.6]} 29. Qe3 {[%clk
0:00:21]} 29... Qxe3+ {[%clk 0:00:49.4]} 30. Rxe3 {[%clk 0:00:22.9]} 30... Nxh4
{[%clk 0:00:50.6]} 31. Rg3 {[%clk 0:00:20]} 31... Rg8 {[%clk 0:00:43.1]} 32. Rh3
{[%clk 0:00:21]} 32... Nxg2+ {[%clk 0:00:41.7]} 33. Kd2 {[%clk 0:00:22.2]} 33...
e3+ {[%clk 0:00:41.3]} 34. Kc1 {[%clk 0:00:23]} 34... e4 {[%clk 0:00:38.9]} 35.
Kb2 {[%clk 0:00:21.1]} 35... e2 {[%clk 0:00:34.2]} 36. a5 {[%clk 0:00:17.1]}
36... e1=Q {[%clk 0:00:32.2]} 37. Rxe1 {[%clk 0:00:19]} 37... Nxe1 {[%clk
0:00:33.3]} 38. Bb1 {[%clk 0:00:20.9]} 38... Nd3+ {[%clk 0:00:33.5]} 39. Ka3
{[%clk 0:00:22.1]} 39... Rg1 {[%clk 0:00:32.6]} 40. Bxd3 {[%clk 0:00:21.2]}
40... exd3 {[%clk 0:00:33.3]} 0-1

[Event "*** Titled Tuesday Blitz"]
[Site "Chess.com"]
[Date "2019.06.04"]
[Round "3"]
[White "Michael_Scofield01"]
[Black "MatthewG-p4p"]
[Result "1-0"]
[WhiteElo "2736"]
[BlackElo "2784"]
[TimeControl "180+2"]
[EndTime "13:36:42 PDT"]
[Termination "Michael_Scofield01 won by resignation"]

1. e4 {[%clk 0:03:01.9]} 1... e6 {[%clk 0:03:00.6]} 2. d4 {[%clk 0:03:02.1]}
2... d5 {[%clk 0:03:01.9]} 3. Nd2 {[%clk 0:03:02.6]} 3... a6 {[%clk 0:03:02.1]}
4. Ngf3 {[%clk 0:02:58.3]} 4... Nf6 {[%clk 0:03:02.6]} 5. Bd3 {[%clk 0:02:58.4]}
5... c5 {[%clk 0:03:03.1]} 6. dxc5 {[%clk 0:02:59.2]} 6... Bxc5 {[%clk
0:03:02.9]} 7. O-O {[%clk 0:02:59.6]} 7... O-O {[%clk 0:03:03.4]} 8. exd5 {[%clk
0:02:54.9]} 8... Qxd5 {[%clk 0:02:57.6]} 9. Qe2 {[%clk 0:02:53.8]} 9... Nc6
{[%clk 0:02:55.4]} 10. Ne4 {[%clk 0:02:54.4]} 10... Be7 {[%clk 0:02:56.6]} 11.
Nxf6+ {[%clk 0:02:50.9]} 11... Bxf6 {[%clk 0:02:58.5]} 12. Be4 {[%clk
0:02:51.8]} 12... Qh5 {[%clk 0:02:59.4]} 13. c3 {[%clk 0:02:49.9]} 13... e5
{[%clk 0:02:59.6]} 14. Be3 {[%clk 0:02:42.5]} 14... Be6 {[%clk 0:02:54.7]} 15.
Rfd1 {[%clk 0:02:40.6]} 15... Rac8 {[%clk 0:02:55.4]} 16. Rd2 {[%clk 0:02:30.7]}
16... Be7 {[%clk 0:02:55.4]} 17. Bd5 {[%clk 0:02:27.2]} 17... Bf5 {[%clk
0:02:26.2]} 18. Rad1 {[%clk 0:02:20.5]} 18... b5 {[%clk 0:02:05.2]} 19. Bxc6
{[%clk 0:01:26.6]} 19... Rxc6 {[%clk 0:02:07.1]} 20. Nxe5 {[%clk 0:01:26]} 20...
Qxe2 {[%clk 0:02:08.7]} 21. Nxc6 {[%clk 0:01:24]} 21... Qxd1+ {[%clk 0:01:40.7]}
22. Rxd1 {[%clk 0:01:24.1]} 22... Bf6 {[%clk 0:01:42.6]} 23. Bd4 {[%clk
0:01:23.9]} 23... Bg5 {[%clk 0:01:36.3]} 24. f4 {[%clk 0:01:17.6]} 24... Be4
{[%clk 0:01:21.7]} 25. fxg5 {[%clk 0:01:06.2]} 25... Bxc6 {[%clk 0:01:22.5]} 26.
Bc5 {[%clk 0:01:02.1]} 26... Rc8 {[%clk 0:01:21.8]} 27. Rd6 {[%clk 0:01:00.3]}
27... a5 {[%clk 0:01:08.7]} 28. Kf2 {[%clk 0:00:56.3]} 28... a4 {[%clk
0:01:09.6]} 29. Bd4 {[%clk 0:00:55.5]} 29... Kf8 {[%clk 0:01:07.1]} 30. Bc5
{[%clk 0:00:53.2]} 30... Ke8 {[%clk 0:01:08.1]} 31. Rd2 {[%clk 0:00:52.4]} 31...
Bd7 {[%clk 0:01:07.6]} 32. Bd4 {[%clk 0:00:52.4]} 32... Be6 {[%clk 0:01:04.2]}
33. Bxg7 {[%clk 0:00:46.3]} 33... Bxa2 {[%clk 0:01:04.9]} 34. Bf6 {[%clk
0:00:47.4]} 34... Be6 {[%clk 0:01:03.1]} 35. Kg3 {[%clk 0:00:47.8]} 35... Bd7
{[%clk 0:01:03.1]} 36. Kh4 {[%clk 0:00:46.6]} 36... Rc4+ {[%clk 0:00:36.1]} 37.
Kh5 {[%clk 0:00:43.6]} 37... b4 {[%clk 0:00:33.2]} 38. cxb4 {[%clk 0:00:41.2]}
38... Rxb4 {[%clk 0:00:35.1]} 39. g3 {[%clk 0:00:39.6]} 39... Rb8 {[%clk
0:00:33.7]} 40. Kh6 {[%clk 0:00:38.5]} 40... Bf5 {[%clk 0:00:35]} 41. Kg7 {[%clk
0:00:39.3]} 41... Ra8 {[%clk 0:00:32.9]} 42. h4 {[%clk 0:00:38.3]} 42... Rc8
{[%clk 0:00:33]} 43. Re2+ {[%clk 0:00:37]} 1-0

[Event "*** Titled Tuesday Blitz"]
[Site "Chess.com"]
[Date "2019.06.04"]
[Round "3"]
[White "Chesska7"]
[Black "Rhinos1"]
[Result "1-0"]
[WhiteElo "2081"]
[BlackElo "2079"]
[TimeControl "180+2"]
[EndTime "13:36:43 PDT"]
[Termination "Chesska7 won by resignation"]

1. b3 {[%clk 0:02:56.8]} 1... f5 {[%clk 0:03:00.2]} 2. Bb2 {[%clk 0:02:57.8]}
2... Nf6 {[%clk 0:03:01.3]} 3. Nf3 {[%clk 0:02:58.2]} 3... d6 {[%clk 0:03:01.6]}
4. d4 {[%clk 0:02:58.8]} 4... g6 {[%clk 0:03:02.3]} 5. c4 {[%clk 0:02:58.8]}
5... Bg7 {[%clk 0:03:02.9]} 6. e3 {[%clk 0:03:00.2]} 6... O-O {[%clk 0:03:03.8]}
7. g3 {[%clk 0:03:01.7]} 7... Nbd7 {[%clk 0:03:04.4]} 8. Bg2 {[%clk 0:03:03.1]}
8... c6 {[%clk 0:03:05.3]} 9. O-O {[%clk 0:03:04.4]} 9... Qe8 {[%clk 0:03:05.9]}
10. d5 {[%clk 0:03:02.5]} 10... a5 {[%clk 0:03:01.7]} 11. Nd4 {[%clk 0:02:57.6]}
11... Ne4 {[%clk 0:02:55]} 12. Qc2 {[%clk 0:02:40.4]} 12... Ndf6 {[%clk
0:02:43.4]} 13. Nc3 {[%clk 0:02:33.7]} 13... c5 {[%clk 0:02:30.6]} 14. Ndb5
{[%clk 0:02:28.3]} 14... Qd8 {[%clk 0:02:22.4]} 15. Nxe4 {[%clk 0:02:26.3]}
15... fxe4 {[%clk 0:02:16.1]} 16. Bxe4 {[%clk 0:02:15.1]} 16... Nxe4 {[%clk
0:02:14.2]} 17. Bxg7 {[%clk 0:02:15.6]} 17... Kxg7 {[%clk 0:02:16.1]} 18. Qxe4
{[%clk 0:02:15.5]} 18... Bf5 {[%clk 0:02:13.3]} 19. Qg2 {[%clk 0:02:14.3]} 19...
Qd7 {[%clk 0:02:09.2]} 20. Rfe1 {[%clk 0:02:00.4]} 20... Bg4 {[%clk 0:02:00.1]}
21. f4 {[%clk 0:01:52.5]} 21... h5 {[%clk 0:01:47.2]} 22. Nc3 {[%clk 0:01:49.8]}
22... Rf7 {[%clk 0:01:36.2]} 23. Ne4 {[%clk 0:01:46.2]} 23... a4 {[%clk
0:01:30.8]} 24. Ng5 {[%clk 0:01:46]} 24... Rf6 {[%clk 0:01:28]} 25. h3 {[%clk
0:01:45.1]} 25... Bf5 {[%clk 0:01:25.5]} 26. e4 {[%clk 0:01:45.6]} 26... b5
{[%clk 0:01:02.4]} 27. exf5 {[%clk 0:01:45.1]} 27... bxc4 {[%clk 0:01:00.6]} 28.
bxc4 {[%clk 0:01:43]} 28... gxf5 {[%clk 0:00:39.6]} 29. Qe2 {[%clk 0:01:41.5]}
29... e5 {[%clk 0:00:26.2]} 30. fxe5 {[%clk 0:01:35.3]} 30... Rg6 {[%clk
0:00:22.1]} 31. h4 {[%clk 0:01:33.4]} 31... Re8 {[%clk 0:00:08.3]} 32. e6 {[%clk
0:01:32.7]} 32... Qe7 {[%clk 0:00:08.3]} 33. Reb1 {[%clk 0:01:22.5]} 33... Qf6
{[%clk 0:00:08.8]} 34. Qb2 {[%clk 0:01:21.1]} 34... Qe5 {[%clk 0:00:04.7]} 35.
Qxe5+ {[%clk 0:01:20.9]} 35... dxe5 {[%clk 0:00:06.5]} 36. Rb7+ {[%clk
0:01:22.8]} 36... Kg8 {[%clk 0:00:07.1]} 37. d6 {[%clk 0:01:23.3]} 37... Rexe6
{[%clk 0:00:06.9]} 38. Nxe6 {[%clk 0:01:23.8]} 38... Rxe6 {[%clk 0:00:08.8]} 39.
d7 {[%clk 0:01:24.6]} 39... Rd6 {[%clk 0:00:09.4]} 40. Rb8+ {[%clk 0:01:25.4]}
40... Kf7 {[%clk 0:00:09.8]} 41. d8=Q {[%clk 0:01:27.3]} 41... Rxd8 {[%clk
0:00:11.1]} 42. Rxd8 {[%clk 0:01:29.2]} 42... e4 {[%clk 0:00:12]} 43. Rd5 {[%clk
0:01:31.1]} 43... Kf6 {[%clk 0:00:12.2]} 44. Kf2 {[%clk 0:01:32.4]} 44... Ke6
{[%clk 0:00:12.7]} 45. Ke3 {[%clk 0:01:33.6]} 45... Kf6 {[%clk 0:00:14.6]} 46.
Rf1 {[%clk 0:01:35.1]} 46... Ke6 {[%clk 0:00:16.3]} 47. Rfxf5 {[%clk 0:01:36.6]}
1-0